{"text_format":"1","workbook":"xlsx","n_sheets":2,"sheets":["по разделам","по этапам"],"not_rendered":{"charts":0,"images":0,"macros":1,"external_links":0,"defined_names":9,"comments":0,"pivot_tables":1},"unopened":[],"bounds":{"document_bytes":16777216,"sheet_cells":100000,"rows_first":2000,"rows_last":500,"rows_between":2000,"halvings":0,"cell_chars":16384,"cell_head_chars":4096},"cells_cut":0,"cells_raw":0,"read":"whole","date_system":"1900"}

{"sheet":"по разделам","index":0,"n_rows":48,"n_cols":10,"rows_kept":48,"cut":false,"hidden":false,"merged":[]}
["РАСЧЕТ по разделам"]
[]
["Наименование работ","Помещения","Кол-во","Ед.изм.","Цена за ед работы","Цена за ед мат-ла","Работа","Материал","Всего, руб."]
[]
["Пол"]
["Гидроизоляция пола в 2 слоя\n(Гидpoизoляциoнная смесь \"Глимс Водостоп\")",null,0,"кв.м.",1,2,{"$f":"ROUND(PRODUCT(C6:E6),0)","v":0},{"$f":"ROUND(PRODUCT(C6,F6),0)","v":0},{"$f":"SUM(G6:H6)","v":0},2.06]
["Гидроизоляция пола в 1 слой\n(Гидpoизoляциoнная смесь \"Глимс Водостоп\")",null,0,"кв.м.",3,75,0,0,0,2.0699999999999998]
["Армирование стяжки\n(метал.сетка 100х100мм, вязальная проволока)",null,0,"кв.м.",3,75,0,0,0,2.11]
["Укладка плитки на пол по прямой (с затиркой швов) \n(Плиточный клей \"Knauf Fliesen\")",null,0,"кв.м.",3,75,0,0,0,4.04]
[]
["Стены"]
["Демонтаж межкомнатных перегородок",null,0,"кв.м.",2,0,{"$f":"ROUND(PRODUCT(C12:E12),0)","v":0},{"$f":"ROUND(PRODUCT(C12,F12),0)","v":0},{"$f":"SUM(G12:H12)","v":0},1.3]
["Расшивка швов + пропенивание + заделка штукатуркой",null,1,"компл.",0,0,0,0,0,1.31]
["Возведение перегородок из газоблока толщ.100 мм с армированием кладки и монтажом перемычек\n(Газобетон 600х250х100 мм, монтажный клей, металл.сетка, арматура, дихтунгсбанд лента)",null,0,"кв.м.",6,7,0,0,0,1.32]
["Выравнивание стен штукатуркой под маяк\n(Гипсовая смесь \"Волма\" + оцинкованный маяк 6мм)",null,0,"кв.м.",4,2,0,0,0,1.37]
[]
["Потолок"]
["Паро-гидро-утепление потолка",null,0,"кв.м.",3,5,{"$f":"ROUND(PRODUCT(C18:E18),0)","v":0},{"$f":"ROUND(PRODUCT(C18,F18),0)","v":0},{"$f":"SUM(G18:H18)","v":0},3.18]
["Покраска потолка в 2-3 слоя",null,0,"кв.м.",3,0,0,0,0,5.13]
[]
["Прочее"]
["Подготовка проемов под установку межкомнатных дверей",null,0,"компл.",3,1,{"$f":"ROUND(PRODUCT(C22:E22),0)","v":0},{"$f":"ROUND(PRODUCT(C22,F22),0)","v":0},{"$f":"SUM(G22:H22)","v":0},2.13]
["Установка подоконника из ПВХ (длин.)",null,0,"шт.",233,0,0,0,0,5.07]
[]
["Коммуникации"]
["Замена системы отопления:\n- установка коллекторов в квартиру;\n- замена труб отопления (коллекторная система);\n- демонтаж и монтаж радиаторов отопления.","-",1,"компл",0,0,{"$f":"ROUND(PRODUCT(C26:E26),0)","v":0},{"$f":"ROUND(PRODUCT(C26,F26),0)","v":0},{"$f":"SUM(G26:H26)","v":0},2.0299999999999998]
["Электромонтажные работы","везде",1,"компл",0,0,{"$f":"ROUND(PRODUCT(C27:E27),0)","v":0},{"$f":"ROUND(PRODUCT(C27,F27),0)","v":0},{"$f":"SUM(G27:H27)","v":0},2.04]
["Сантехнические работы по всей квартире (\"REHAU\"):","кухня + с/у",1,"компл",0,0,{"$f":"ROUND(PRODUCT(C28:E28),0)","v":0},{"$f":"ROUND(PRODUCT(C28,F28),0)","v":0},{"$f":"SUM(G28:H28)","v":0},3.05]
["Установка системы протечки \n(Система протечки \"Нептун\")","-",0,"компл.",3,0,{"$f":"ROUND(PRODUCT(C29:E29),0)","v":0},{"$f":"ROUND(PRODUCT(C29,F29),0)","v":0},{"$f":"SUM(G29:H29)","v":0},3.07]
[]
["Санфаянсы"]
["Установка раковины (с подключением)",null,0,"шт.",1,0,{"$f":"ROUND(PRODUCT(C32:E32),0)","v":0},{"$f":"ROUND(PRODUCT(C32,F32),0)","v":0},{"$f":"SUM(G32:H32)","v":0},6.21]
["Установка инсталляции унитаза",null,0,"компл",1,0,0,0,0,3.08]
["Установка унитаза (с подключением)",null,0,"шт.",1,0,0,0,0,6.25]
[]
["Общий раздел"]
["Расход",null,0.05,"руб",{"$f":"ROUND(SUMPRODUCT(C3:C36,E3:E36),0)","v":0},0,0,{"$f":"ROUNDDOWN(C37*E37,0)","v":0},{"$f":"SUM(G37:H37)","v":0},7.01]
["Доп.расход","-",1,"компл",0,0,{"$f":"ROUND(PRODUCT(C38:E38),1)","v":0},{"$f":"PRODUCT(C38,F38)","v":0},{"$f":"SUM(G38:H38)","v":0},7.02]
[]
["Итого на работу:",null,null,null,null,null,{"$f":"E37","v":0},null,null,8.01]
["Итого на материал:",null,null,null,null,null,null,{"$f":"ROUNDDOWN(SUMPRODUCT(C3:C36,F3:F36),0)+I37+I38","v":0},null,8.02]
[]
["-"]
["Дополнение:",null,null,null,null,null,"Примечание:"]
[null,null,null,"шт.  ",13,null,null,null,null,9.01]
["Разгрузка и подъем материала",null,null,"тонна",1,null,"кол-во уточняется",null,null,9.02]
["Вынос мусора",null,null,"тонна",2,null,null,null,null,9.0299999999999994]
["-"]

{"sheet":"по этапам","index":1,"n_rows":57,"n_cols":10,"rows_kept":57,"cut":false,"hidden":false,"merged":[]}
["РАСЧЕТ по этапам"]
[null,null,null,null,null,null,null," "]
["№","Наименование работ","Помещения","Кол-во","Ед.изм.","Цена за ед работы","Цена за ед мат-ла","Работа","Материал","Всего, руб."]
["Этап № 1"]
[3,"Демонтаж межкомнатных перегородок","(пусто)",0,"кв.м.",2,0,0,0,0]
[31,"Расшивка швов + пропенивание + заделка штукатуркой","(пусто)",1,"компл.",0,0,0,0,0]
[32,"Возведение перегородок из газоблока толщ.100 мм с армированием кладки и монтажом перемычек\n(Газобетон 600х250х100 мм, монтажный клей, металл.сетка, арматура, дихтунгсбанд лента)","(пусто)",0,"кв.м.",6,7,0,0,0]
[37,"Выравнивание стен штукатуркой под маяк\n(Гипсовая смесь \"Волма\" + оцинкованный маяк 6мм)","(пусто)",0,"кв.м.",4,2,0,0,0]
["Этап № 1 Итог",null,null,null,null,null,null,0,0,0]
[]
["Этап № 2"]
[3,"Замена системы отопления:\n- установка коллекторов в квартиру;\n- замена труб отопления (коллекторная система);\n- демонтаж и монтаж радиаторов отопления.","-",1,"компл",0,0,0,0,0]
[4,"Электромонтажные работы","везде",1,"компл",0,0,0,0,0]
[6,"Гидроизоляция пола в 2 слоя\n(Гидpoизoляциoнная смесь \"Глимс Водостоп\")","(пусто)",0,"кв.м.",1,2,0,0,0]
[7,"Гидроизоляция пола в 1 слой\n(Гидpoизoляциoнная смесь \"Глимс Водостоп\")","(пусто)",0,"кв.м.",3,75,0,0,0]
[11,"Армирование стяжки\n(метал.сетка 100х100мм, вязальная проволока)","(пусто)",0,"кв.м.",3,75,0,0,0]
[13,"Подготовка проемов под установку межкомнатных дверей","(пусто)",0,"компл.",3,1,0,0,0]
["Этап № 2 Итог",null,null,null,null,null,null,0,0,0]
[]
["Этап № 3"]
[5,"Сантехнические работы по всей квартире (\"REHAU\"):","кухня + с/у",1,"компл",0,0,0,0,0]
[7,"Установка системы протечки \n(Система протечки \"Нептун\")","-",0,"компл.",3,0,0,0,0]
[8,"Установка инсталляции унитаза","(пусто)",0,"компл",1,0,0,0,0]
[18,"Паро-гидро-утепление потолка","(пусто)",0,"кв.м.",3,5,0,0,0]
["Этап № 3 Итог",null,null,null,null,null,null,0,0,0]
[]
["Этап № 4"]
[4,"Укладка плитки на пол по прямой (с затиркой швов) \n(Плиточный клей \"Knauf Fliesen\")","(пусто)",0,"кв.м.",3,75,0,0,0]
["Этап № 4 Итог",null,null,null,null,null,null,0,0,0]
[]
["Этап № 5"]
[7,"Установка подоконника из ПВХ (длин.)","(пусто)",0,"шт.",233,0,0,0,0]
[13,"Покраска потолка в 2-3 слоя","(пусто)",0,"кв.м.",3,0,0,0,0]
["Этап № 5 Итог",null,null,null,null,null,null,0,0,0]
[]
["Этап № 6"]
[21,"Установка раковины (с подключением)","(пусто)",0,"шт.",1,0,0,0,0]
[25,"Установка унитаза (с подключением)","(пусто)",0,"шт.",1,0,0,0,0]
["Этап № 6 Итог",null,null,null,null,null,null,0,0,0]
[]
["Этап № 7"]
[1,"Расход","(пусто)",0.05,"руб",0,0,0,0,0]
[2,"Доп.расход","-",1,"компл",0,0,0,0,0]
["Этап № 7 Итог",null,null,null,null,null,null,0,0,0]
[]
["Этап № 8"]
[1,"Итого на работу:","(пусто)","(пусто)","(пусто)","(пусто)","(пусто)",0]
[2,"Итого на материал:","(пусто)","(пусто)","(пусто)","(пусто)","(пусто)",null,0]
["Этап № 8 Итог",null,null,null,null,null,null,0,0]
[]
["Этап № 9"]
[1,"(пусто)","(пусто)","(пусто)","шт.  ",13,"(пусто)"]
[2,"Разгрузка и подъем материала","(пусто)","(пусто)","тонна",1,"(пусто)"]
[3,"Вынос мусора","(пусто)","(пусто)","тонна",2,"(пусто)"]
["Этап № 9 Итог"]
[]
["Общий итог",null,null,null,null,null,null,0,0,0]